[Event "*** MasterClass Titled Tuesday Blitz"]
[Site "Chess.com"]
[Date "2017.07.04"]
[Round "5"]
[White "dalmatinac101"]
[Black "Hikaru"]
[Result "1-0"]
[WhiteElo "2643"]
[BlackElo "2959"]
[TimeControl "180+2"]
[EndTime "14:07:15 PDT"]
[Termination "dalmatinac101 won by resignation"]

1. e4 {[%clk 0:03:01.1]} 1... c5 {[%clk 0:01:48.6]} 2. Nf3 {[%clk 0:03:01.5]}
2... d6 {[%clk 0:01:49.9]} 3. d4 {[%clk 0:03:02.3]} 3... cxd4 {[%clk 0:01:51.8]}
4. Nxd4 {[%clk 0:03:02.4]} 4... Nf6 {[%clk 0:01:53.7]} 5. Nc3 {[%clk 0:03:03.6]}
5... a6 {[%clk 0:01:55.6]} 6. h3 {[%clk 0:03:04.3]} 6... g6 {[%clk 0:01:56.1]}
7. g4 {[%clk 0:03:04.5]} 7... Bg7 {[%clk 0:01:57.7]} 8. Be3 {[%clk 0:03:05.4]}
8... O-O {[%clk 0:01:59.6]} 9. Qd2 {[%clk 0:03:06.5]} 9... Nc6 {[%clk
0:02:01.3]} 10. O-O-O {[%clk 0:03:07.2]} 10... Be6 {[%clk 0:02:02.8]} 11. Kb1
{[%clk 0:03:06.6]} 11... Rc8 {[%clk 0:02:03.4]} 12. Nxe6 {[%clk 0:03:05.7]}
12... fxe6 {[%clk 0:02:04.5]} 13. Bc4 {[%clk 0:03:06.9]} 13... Qd7 {[%clk
0:02:01.3]} 14. Bb3 {[%clk 0:03:03.5]} 14... b5 {[%clk 0:02:01.7]} 15. g5 {[%clk
0:03:02.1]} 15... Nh5 {[%clk 0:01:59.5]} 16. f4 {[%clk 0:03:00]} 16... Bxc3
{[%clk 0:01:49.8]} 17. bxc3 {[%clk 0:02:41.8]} 17... Ng3 {[%clk 0:01:44.3]} 18.
Qg2 {[%clk 0:02:38.3]} 18... Nxh1 {[%clk 0:01:42.2]} 19. f5 {[%clk 0:02:39.5]}
19... gxf5 {[%clk 0:01:42.3]} 20. g6 {[%clk 0:02:40.4]} 20... f4 {[%clk
0:00:54.2]} 21. Qg4 {[%clk 0:02:38.4]} 21... Rf6 {[%clk 0:00:53.3]} 22. gxh7+
{[%clk 0:02:36.9]} 22... Kh8 {[%clk 0:00:53]} 23. Rg1 {[%clk 0:02:31.8]} 23...
Ng3 {[%clk 0:00:53.5]} 24. Bxf4 {[%clk 0:02:32.2]} 24... Qe8 {[%clk 0:00:41.7]}
25. Qxg3 {[%clk 0:01:21.8]} 25... Qf7 {[%clk 0:00:42]} 26. e5 {[%clk 0:01:11.6]}
26... Rxf4 {[%clk 0:00:24.4]} 27. Bxe6 {[%clk 0:01:07.1]} 27... Rf1+ {[%clk
0:00:25.8]} 28. Rxf1 {[%clk 0:01:08]} 28... Qxf1+ {[%clk 0:00:26.2]} 29. Kb2
{[%clk 0:01:08.7]} 29... Qf8 {[%clk 0:00:28.1]} 30. Bxc8 {[%clk 0:01:04.9]}
30... Qxc8 {[%clk 0:00:30]} 31. exd6 {[%clk 0:01:05.9]} 31... exd6 {[%clk
0:00:31.7]} 32. Qxd6 {[%clk 0:01:06.4]} 32... Kxh7 {[%clk 0:00:33.4]} 33. h4
{[%clk 0:00:59.3]} 33... Na5 {[%clk 0:00:32.4]} 34. Qe7+ {[%clk 0:00:59.7]}
34... Kg6 {[%clk 0:00:33.3]} 35. Qe4+ {[%clk 0:00:58.7]} 35... Kf7 {[%clk
0:00:34.2]} 36. Qf4+ {[%clk 0:00:59.5]} 36... Ke8 {[%clk 0:00:32.5]} 37. Qe5+
{[%clk 0:00:53.9]} 37... Kf7 {[%clk 0:00:33.4]} 38. Qf4+ {[%clk 0:00:53.1]}
38... Ke7 {[%clk 0:00:34.3]} 39. Qb4+ {[%clk 0:00:52.6]} 39... Kf6 {[%clk
0:00:35.3]} 40. Qxa5 {[%clk 0:00:53.2]} 40... Kg6 {[%clk 0:00:37.2]} 41. Qb6+
{[%clk 0:00:53.3]} 41... Kh5 {[%clk 0:00:37.8]} 42. Qd4 {[%clk 0:00:54.7]} 42...
Qc7 {[%clk 0:00:39.3]} 43. Qf6 {[%clk 0:00:54.7]} 43... Kg4 {[%clk 0:00:37.2]}
44. Qg5+ {[%clk 0:00:54.7]} 44... Kf3 {[%clk 0:00:37.1]} 45. h5 {[%clk
0:00:56.1]} 45... b4 {[%clk 0:00:38.6]} 46. cxb4 {[%clk 0:00:55.5]} 46... Qc4
{[%clk 0:00:40.2]} 47. Qc5 {[%clk 0:00:53.1]} 47... Qe6 {[%clk 0:00:41.7]} 48.
a4 {[%clk 0:00:49.3]} 48... Kg4 {[%clk 0:00:43.1]} 49. b5 {[%clk 0:00:42.7]}
49... Qf6+ {[%clk 0:00:44]} 50. Kb3 {[%clk 0:00:42.7]} 50... Qf3+ {[%clk
0:00:43]} 51. Qc3 {[%clk 0:00:42]} 51... Qd1 {[%clk 0:00:42.8]} 52. bxa6 {[%clk
0:00:40.4]} 52... Qb1+ {[%clk 0:00:43.7]} 53. Ka3 {[%clk 0:00:40.1]} 53... Qb6
{[%clk 0:00:44.2]} 1-0

[Event "*** MasterClass Titled Tuesday Blitz"]
[Site "Chess.com"]
[Date "2017.07.04"]
[Round "5"]
[White "Adham_Fawzy"]
[Black "DrVelja"]
[Result "1-0"]
[WhiteElo "2424"]
[BlackElo "2559"]
[TimeControl "180+2"]
[EndTime "14:07:22 PDT"]
[Termination "Adham_Fawzy won by resignation"]

1. e4 {[%clk 0:02:59.6]} 1... c5 {[%clk 0:02:52.2]} 2. Nf3 {[%clk 0:03:00.2]}
2... Nc6 {[%clk 0:02:52.2]} 3. Bb5 {[%clk 0:03:00.5]} 3... g6 {[%clk 0:02:52.2]}
4. Bxc6 {[%clk 0:03:00]} 4... dxc6 {[%clk 0:02:53.2]} 5. d3 {[%clk 0:03:00]}
5... Bg7 {[%clk 0:02:54.2]} 6. h3 {[%clk 0:03:01.1]} 6... Nf6 {[%clk 0:02:54]}
7. O-O {[%clk 0:03:01.3]} 7... O-O {[%clk 0:02:54.6]} 8. Nc3 {[%clk 0:03:00.3]}
8... Nd7 {[%clk 0:02:51.4]} 9. Be3 {[%clk 0:02:56.9]} 9... e5 {[%clk 0:02:51.4]}
10. Nd2 {[%clk 0:02:57.9]} 10... b6 {[%clk 0:02:45.5]} 11. a4 {[%clk 0:02:55.7]}
11... a5 {[%clk 0:02:45.4]} 12. Nc4 {[%clk 0:02:54.6]} 12... Ba6 {[%clk
0:02:39.5]} 13. b3 {[%clk 0:02:51.9]} 13... f5 {[%clk 0:02:27]} 14. f3 {[%clk
0:02:39.7]} 14... f4 {[%clk 0:02:23.5]} 15. Bf2 {[%clk 0:02:39.4]} 15... Qe7
{[%clk 0:02:20.6]} 16. Nb1 {[%clk 0:02:37]} 16... g5 {[%clk 0:02:09.2]} 17. Nbd2
{[%clk 0:02:00.9]} 17... h5 {[%clk 0:02:05.4]} 18. c3 {[%clk 0:02:00.6]} 18...
Rab8 {[%clk 0:01:24.7]} 19. Re1 {[%clk 0:02:00.3]} 19... Bc8 {[%clk 0:01:22]}
20. Rb1 {[%clk 0:01:55.4]} 20... g4 {[%clk 0:01:20]} 21. fxg4 {[%clk 0:01:52.2]}
21... hxg4 {[%clk 0:01:20.7]} 22. Qxg4 {[%clk 0:01:48.9]} 22... Nf6 {[%clk
0:01:06]} 23. Qh4 {[%clk 0:01:49.2]} 23... b5 {[%clk 0:00:56.6]} 24. Nxa5 {[%clk
0:01:42.5]} 24... Bd7 {[%clk 0:00:57.7]} 25. b4 {[%clk 0:01:40.6]} 25... cxb4
{[%clk 0:00:58.2]} 26. cxb4 {[%clk 0:01:41.6]} 26... Qe6 {[%clk 0:00:50.3]} 27.
axb5 {[%clk 0:01:41.8]} 27... Rxb5 {[%clk 0:00:48.1]} 28. Nac4 {[%clk
0:01:37.9]} 28... Nh7 {[%clk 0:00:38.9]} 29. Bc5 {[%clk 0:01:34]} 29... Rf6
{[%clk 0:00:39.3]} 30. Nf3 {[%clk 0:01:32.7]} 30... Rg6 {[%clk 0:00:36]} 31.
Qd8+ {[%clk 0:01:22.5]} 31... Nf8 {[%clk 0:00:28.3]} 32. Ncxe5 {[%clk
0:01:13.7]} 32... Rxg2+ {[%clk 0:00:08.8]} 33. Kxg2 {[%clk 0:01:13.9]} 33...
Qxh3+ {[%clk 0:00:10]} 34. Kf2 {[%clk 0:01:15]} 34... Qg3+ {[%clk 0:00:09.9]}
35. Ke2 {[%clk 0:01:15.9]} 35... Rxc5 {[%clk 0:00:03.4]} 36. bxc5 {[%clk
0:00:57.4]} 36... Qg2+ {[%clk 0:00:03.5]} 37. Kd1 {[%clk 0:00:58.2]} 37... Bg4
{[%clk 0:00:04.9]} 38. Nxg4 {[%clk 0:00:40.6]} 38... Qxf3+ {[%clk 0:00:05.5]}
39. Kc2 {[%clk 0:00:41.2]} 39... Qxg4 {[%clk 0:00:06.5]} 40. Rg1 {[%clk
0:00:36.2]} 40... Qe2+ {[%clk 0:00:07.4]} 41. Kb3 {[%clk 0:00:36.9]} 41... f3
{[%clk 0:00:06.5]} 42. Qd4 {[%clk 0:00:30.9]} 42... Ne6 {[%clk 0:00:06.8]} 43.
Rxg7+ {[%clk 0:00:29.7]} 43... Nxg7 {[%clk 0:00:08.4]} 44. Rg1 {[%clk
0:00:29.8]} 1-0

[Event "*** MasterClass Titled Tuesday Blitz"]
[Site "Chess.com"]
[Date "2017.07.04"]
[Round "5"]
[White "KNVB"]
[Black "TregubovP"]
[Result "1-0"]
[WhiteElo "2483"]
[BlackElo "2402"]
[TimeControl "180+2"]
[EndTime "14:07:43 PDT"]
[Termination "KNVB won by resignation"]

1. d4 {[%clk 0:03:01.9]} 1... Nf6 {[%clk 0:02:59.2]} 2. Nf3 {[%clk 0:03:02.5]}
2... c5 {[%clk 0:02:58.7]} 3. c3 {[%clk 0:02:37.9]} 3... d5 {[%clk 0:02:51.7]}
4. Bf4 {[%clk 0:02:37]} 4... Nc6 {[%clk 0:02:51.3]} 5. e3 {[%clk 0:02:35]} 5...
Qb6 {[%clk 0:02:49]} 6. Qc2 {[%clk 0:02:35.1]} 6... Bf5 {[%clk 0:02:45.3]} 7.
dxc5 {[%clk 0:02:34.7]} 7... Bxc2 {[%clk 0:02:41.8]} 8. cxb6 {[%clk 0:02:35.6]}
8... axb6 {[%clk 0:02:43.3]} 9. Na3 {[%clk 0:02:37.2]} 9... Bf5 {[%clk
0:02:20.6]} 10. Nb5 {[%clk 0:02:33.7]} 10... Kd7 {[%clk 0:02:14.7]} 11. Ne5+
{[%clk 0:02:26.5]} 11... Nxe5 {[%clk 0:02:14.5]} 12. Bxe5 {[%clk 0:02:28.4]}
12... e6 {[%clk 0:02:11.7]} 13. f3 {[%clk 0:02:27.2]} 13... Bc5 {[%clk
0:02:08.6]} 14. Kd2 {[%clk 0:02:21.3]} 14... Rhc8 {[%clk 0:02:04.1]} 15. g4
{[%clk 0:02:17.3]} 15... Bg6 {[%clk 0:02:04.3]} 16. h4 {[%clk 0:02:16.8]} 16...
h5 {[%clk 0:02:04.3]} 17. g5 {[%clk 0:02:11.3]} 17... Ne8 {[%clk 0:02:05.1]} 18.
Bh3 {[%clk 0:02:04.1]} 18... f6 {[%clk 0:02:04.3]} 19. gxf6 {[%clk 0:01:57]}
19... gxf6 {[%clk 0:02:05.8]} 20. Rhg1 {[%clk 0:01:54.3]} 20... Bf5 {[%clk
0:01:49.7]} 21. Bxf5 {[%clk 0:01:51.5]} 21... fxe5 {[%clk 0:01:48.5]} 22. Bh3
{[%clk 0:01:42.8]} 22... Rc6 {[%clk 0:01:18]} 23. Rg5 {[%clk 0:01:21.4]} 23...
Nc7 {[%clk 0:01:00.5]} 24. Nxc7 {[%clk 0:01:15.6]} 24... Kxc7 {[%clk 0:00:55.2]}
25. Rxe5 {[%clk 0:01:14.4]} 25... Rg8 {[%clk 0:00:47.7]} 26. Rxe6 {[%clk
0:00:54.3]} 26... Rxe6 {[%clk 0:00:46.6]} 27. Bxe6 {[%clk 0:00:56.2]} 27... Rg2+
{[%clk 0:00:47.4]} 28. Kd3 {[%clk 0:00:57.5]} 28... Kd6 {[%clk 0:00:47.6]} 29.
Bf7 {[%clk 0:00:56.7]} 29... Rxb2 {[%clk 0:00:48]} 30. Bxh5 {[%clk 0:00:34.2]}
30... Rh2 {[%clk 0:00:47.2]} 31. Bg4 {[%clk 0:00:26]} 31... Rxh4 {[%clk
0:00:47.6]} 32. Rd1 {[%clk 0:00:27.1]} 32... Rh2 {[%clk 0:00:46.2]} 33. Rd2
{[%clk 0:00:28]} 33... Rh1 {[%clk 0:00:44.1]} 34. c4 {[%clk 0:00:26.8]} 34...
Bb4 {[%clk 0:00:33.5]} 35. Rb2 {[%clk 0:00:22.3]} 35... Bc5 {[%clk 0:00:32.4]}
36. cxd5 {[%clk 0:00:22.1]} 36... Kxd5 {[%clk 0:00:31.9]} 37. f4 {[%clk
0:00:18.9]} 37... Re1 {[%clk 0:00:31.4]} 38. Bf3+ {[%clk 0:00:18.4]} 38... Kd6
{[%clk 0:00:31.5]} 39. Re2 {[%clk 0:00:19.1]} 39... Rd1+ {[%clk 0:00:29.5]} 40.
Ke4 {[%clk 0:00:19.5]} 40... Ke6 {[%clk 0:00:26.2]} 41. Bg4+ {[%clk 0:00:20.2]}
41... Kf6 {[%clk 0:00:26.7]} 42. Bc8 {[%clk 0:00:20.6]} 42... Rd8 {[%clk
0:00:20.1]} 43. Bxb7 {[%clk 0:00:21.3]} 43... Rd7 {[%clk 0:00:20.5]} 44. Bd5
{[%clk 0:00:20.3]} 44... Ra7 {[%clk 0:00:21.4]} 45. Bb3 {[%clk 0:00:21]} 45...
Re7+ {[%clk 0:00:19]} 46. Kf3 {[%clk 0:00:22]} 46... Rh7 {[%clk 0:00:19.2]} 47.
e4 {[%clk 0:00:20.1]} 47... Rh3+ {[%clk 0:00:19.7]} 48. Kg4 {[%clk 0:00:21.3]}
48... Rc3 {[%clk 0:00:17.5]} 49. e5+ {[%clk 0:00:22.3]} 49... Ke7 {[%clk
0:00:18.4]} 50. f5 {[%clk 0:00:22.9]} 50... Bd4 {[%clk 0:00:17.4]} 51. f6+
{[%clk 0:00:23.7]} 51... Kf8 {[%clk 0:00:18.2]} 52. Re4 {[%clk 0:00:24.1]} 52...
Rd3 {[%clk 0:00:18.2]} 53. Kf5 {[%clk 0:00:22.7]} 53... Bc3 {[%clk 0:00:18.2]}
54. Rg4 {[%clk 0:00:22.5]} 54... Rf3+ {[%clk 0:00:17.5]} 55. Ke4 {[%clk
0:00:23.3]} 1-0

[Event "*** MasterClass Titled Tuesday Blitz"]
[Site "Chess.com"]
[Date "2017.07.04"]
[Round "5"]
[White "Ez_Chess2016"]
[Black "1lec"]
[Result "0-1"]
[WhiteElo "1971"]
[BlackElo "2089"]
[TimeControl "180+2"]
[EndTime "14:07:48 PDT"]
[Termination "1lec won by resignation"]

1. e4 {[%clk 0:03:01.9]} 1... c6 {[%clk 0:03:01.1]} 2. d4 {[%clk 0:03:01.7]}
2... d5 {[%clk 0:03:02.8]} 3. e5 {[%clk 0:03:02.1]} 3... Bf5 {[%clk 0:03:03.7]}
4. Nc3 {[%clk 0:03:02]} 4... e6 {[%clk 0:03:01.8]} 5. Bd3 {[%clk 0:03:02.7]}
5... Bxd3 {[%clk 0:03:01.5]} 6. Qxd3 {[%clk 0:03:03.8]} 6... c5 {[%clk
0:03:02.3]} 7. Nge2 {[%clk 0:03:01.1]} 7... Nc6 {[%clk 0:03:00]} 8. O-O {[%clk
0:02:55.9]} 8... cxd4 {[%clk 0:02:59.4]} 9. Nxd4 {[%clk 0:02:52.9]} 9... Nxe5
{[%clk 0:03:00.6]} 10. Qg3 {[%clk 0:02:50.5]} 10... Nc6 {[%clk 0:02:48.8]} 11.
Ndb5 {[%clk 0:02:04.8]} 11... Rc8 {[%clk 0:02:47.8]} 12. Bg5 {[%clk 0:02:04.5]}
12... Nf6 {[%clk 0:02:21.1]} 13. Rfe1 {[%clk 0:01:19.7]} 13... a6 {[%clk
0:01:42.1]} 14. Bxf6 {[%clk 0:00:44.2]} 14... Qxf6 {[%clk 0:01:44]} 15. Nxd5
{[%clk 0:00:44.1]} 15... Qxb2 {[%clk 0:01:34.2]} 16. Ndc7+ {[%clk 0:00:39.3]}
16... Ke7 {[%clk 0:01:12.9]} 17. Qd6+ {[%clk 0:00:23.6]} 17... Kf6 {[%clk
0:01:05.7]} 18. Nd5+ {[%clk 0:00:22.3]} 18... Kg6 {[%clk 0:00:58.4]} 19. Qg3+
{[%clk 0:00:21.9]} 19... Kh6 {[%clk 0:00:57.6]} 20. Qh4+ {[%clk 0:00:21.6]}
20... Kg6 {[%clk 0:00:58.5]} 21. Nf4+ {[%clk 0:00:22.5]} 21... Kf5 {[%clk
0:00:59.5]} 22. Rad1 {[%clk 0:00:02.4]} 22... g5 {[%clk 0:00:50.6]} 23. Qh3+
{[%clk 0:00:03.9]} 23... Kf6 {[%clk 0:00:49]} 24. Nh5+ {[%clk 0:00:04.8]} 24...
Ke7 {[%clk 0:00:38.5]} 25. Nd6 {[%clk 0:00:06.2]} 25... Rd8 {[%clk 0:00:11.1]}
26. Nf5+ {[%clk 0:00:07.4]} 26... Ke8 {[%clk 0:00:12.1]} 27. Nf6+ {[%clk
0:00:08.5]} 27... Qxf6 {[%clk 0:00:12.8]} 28. Rxd8+ {[%clk 0:00:08.4]} 28...
Kxd8 {[%clk 0:00:12.7]} 29. Rd1+ {[%clk 0:00:08.3]} 29... Kc8 {[%clk 0:00:13.3]}
30. Ne3 {[%clk 0:00:08.1]} 30... Bc5 {[%clk 0:00:09.3]} 31. Qg3 {[%clk
0:00:05.4]} 31... Bxe3 {[%clk 0:00:06.2]} 32. Qxe3 {[%clk 0:00:06.1]} 32... Rd8
{[%clk 0:00:07.3]} 33. Rxd8+ {[%clk 0:00:06.3]} 33... Qxd8 {[%clk 0:00:09.2]}
34. h3 {[%clk 0:00:07]} 34... Qd1+ {[%clk 0:00:10.2]} 35. Kh2 {[%clk 0:00:07.7]}
35... Qd6+ {[%clk 0:00:11.8]} 36. g3 {[%clk 0:00:09.1]} 36... Qe5 {[%clk
0:00:12.4]} 37. Qa3 {[%clk 0:00:08.3]} 37... Qf6 {[%clk 0:00:08.3]} 38. Qf8+
{[%clk 0:00:09]} 38... Kc7 {[%clk 0:00:07.9]} 39. c4 {[%clk 0:00:10.5]} 39...
Qxf2+ {[%clk 0:00:08.4]} 40. Kh1 {[%clk 0:00:11.9]} 40... Qf1+ {[%clk
0:00:07.9]} 41. Kh2 {[%clk 0:00:12.7]} 41... Qf2+ {[%clk 0:00:09.1]} 42. Kh1
{[%clk 0:00:13.5]} 42... Qf6 {[%clk 0:00:11]} 43. c5 {[%clk 0:00:13.7]} 43...
Qe7 {[%clk 0:00:11.2]} 44. Qg7 {[%clk 0:00:12.3]} 44... f5 {[%clk 0:00:11.8]}
45. Qc3 {[%clk 0:00:12]} 45... Qd7 {[%clk 0:00:12.7]} 46. Kh2 {[%clk 0:00:11.6]}
46... h5 {[%clk 0:00:11.8]} 47. h4 {[%clk 0:00:12.5]} 47... gxh4 {[%clk
0:00:10.3]} 48. gxh4 {[%clk 0:00:14.4]} 48... Qd4 {[%clk 0:00:09.9]} 49. Qb3
{[%clk 0:00:09.9]} 49... Qxc5 {[%clk 0:00:05.4]} 50. Qxe6 {[%clk 0:00:10.3]}
50... Qe5+ {[%clk 0:00:06.7]} 51. Qxe5+ {[%clk 0:00:11.9]} 51... Nxe5 {[%clk
0:00:08.6]} 0-1

[Event "*** MasterClass Titled Tuesday Blitz"]
[Site "Chess.com"]
[Date "2017.07.04"]
[Round "5"]
[White "grzechu96"]
[Black "GMKrikor"]
[Result "1-0"]
[WhiteElo "2410"]
[BlackElo "2457"]
[TimeControl "180+2"]
[EndTime "14:09:02 PDT"]
[Termination "grzechu96 won by resignation"]

1. e4 {[%clk 0:03:01.9]} 1... e5 {[%clk 0:03:00.1]} 2. Nf3 {[%clk 0:03:03]} 2...
Nc6 {[%clk 0:02:59.8]} 3. Bc4 {[%clk 0:03:04.2]} 3... Bc5 {[%clk 0:03:00.2]} 4.
O-O {[%clk 0:03:04.7]} 4... Nf6 {[%clk 0:03:01.4]} 5. d3 {[%clk 0:03:06.2]} 5...
d6 {[%clk 0:03:00.5]} 6. c3 {[%clk 0:03:06.6]} 6... h6 {[%clk 0:02:57.9]} 7. Re1
{[%clk 0:03:06.8]} 7... a6 {[%clk 0:02:54.6]} 8. Bb3 {[%clk 0:03:08]} 8... Ba7
{[%clk 0:02:54.3]} 9. Nbd2 {[%clk 0:03:07.6]} 9... O-O {[%clk 0:02:54.4]} 10. h3
{[%clk 0:03:07.9]} 10... Re8 {[%clk 0:02:54.2]} 11. Nf1 {[%clk 0:03:07]} 11...
Be6 {[%clk 0:02:54.5]} 12. Bxe6 {[%clk 0:03:07.8]} 12... Rxe6 {[%clk 0:02:55.2]}
13. Be3 {[%clk 0:03:09.5]} 13... Bxe3 {[%clk 0:02:27.3]} 14. Nxe3 {[%clk
0:03:11.4]} 14... d5 {[%clk 0:02:27.3]} 15. Qc2 {[%clk 0:03:11.9]} 15... Qd7
{[%clk 0:02:16.3]} 16. Nf5 {[%clk 0:02:56.1]} 16... Rd8 {[%clk 0:02:07.3]} 17.
Rad1 {[%clk 0:02:56.2]} 17... Qe8 {[%clk 0:01:39.5]} 18. Ng3 {[%clk 0:02:36.1]}
18... g6 {[%clk 0:01:25.6]} 19. Qb3 {[%clk 0:02:31.4]} 19... b6 {[%clk 0:01:18]}
20. exd5 {[%clk 0:01:46.1]} 20... Nxd5 {[%clk 0:01:17.5]} 21. d4 {[%clk
0:01:45.5]} 21... e4 {[%clk 0:00:58.7]} 22. Nh2 {[%clk 0:01:45.4]} 22... b5
{[%clk 0:00:46]} 23. Ng4 {[%clk 0:01:44.1]} 23... Kg7 {[%clk 0:00:41.2]} 24. Ne3
{[%clk 0:01:39]} 24... Nxe3 {[%clk 0:00:33.8]} 25. Rxe3 {[%clk 0:01:40]} 25...
f5 {[%clk 0:00:23.4]} 26. Rde1 {[%clk 0:01:26.7]} 26... Na5 {[%clk 0:00:23.1]}
27. Qc2 {[%clk 0:01:19.2]} 27... Nc4 {[%clk 0:00:24.1]} 28. R3e2 {[%clk
0:01:20.3]} 28... c5 {[%clk 0:00:17.9]} 29. dxc5 {[%clk 0:01:02.7]} 29... Qc6
{[%clk 0:00:18.1]} 30. Rd1 {[%clk 0:00:24.3]} 30... Rxd1+ {[%clk 0:00:16.6]} 31.
Qxd1 {[%clk 0:00:26.2]} 31... Qxc5 {[%clk 0:00:18.1]} 32. Qd7+ {[%clk
0:00:19.2]} 32... Re7 {[%clk 0:00:17.5]} 33. Qd8 {[%clk 0:00:20.5]} 33... Qd6
{[%clk 0:00:18.2]} 34. Qxd6 {[%clk 0:00:19.9]} 34... Nxd6 {[%clk 0:00:19.7]} 35.
b3 {[%clk 0:00:17.6]} 35... Kf6 {[%clk 0:00:19.4]} 36. Rd2 {[%clk 0:00:17.8]}
36... Ke5 {[%clk 0:00:20.8]} 37. Kf1 {[%clk 0:00:18.9]} 37... Rc7 {[%clk
0:00:22]} 38. Ne2 {[%clk 0:00:13.4]} 38... f4 {[%clk 0:00:23.3]} 39. g3 {[%clk
0:00:11.4]} 39... f3 {[%clk 0:00:23.9]} 40. Nf4 {[%clk 0:00:12.3]} 40... Nf5
{[%clk 0:00:19.1]} 41. Nxg6+ {[%clk 0:00:12]} 41... Kf6 {[%clk 0:00:20.5]} 42.
Nf4 {[%clk 0:00:13.1]} 42... Ne7 {[%clk 0:00:16]} 43. Rc2 {[%clk 0:00:12.5]}
43... Ke5 {[%clk 0:00:15]} 44. Ke1 {[%clk 0:00:13.6]} 44... Nf5 {[%clk
0:00:16.3]} 45. Ng6+ {[%clk 0:00:13.2]} 45... Kf6 {[%clk 0:00:17.4]} 46. Nf4
{[%clk 0:00:14.7]} 46... Ke5 {[%clk 0:00:15.3]} 47. Ng6+ {[%clk 0:00:15.7]}
47... Kf6 {[%clk 0:00:16.7]} 48. Nf4 {[%clk 0:00:16.9]} 48... Rc5 {[%clk
0:00:17.9]} 49. Kd2 {[%clk 0:00:10.5]} 49... Ke5 {[%clk 0:00:18.5]} 50. Ng6+
{[%clk 0:00:11.2]} 50... Kf6 {[%clk 0:00:19.8]} 51. Nf4 {[%clk 0:00:12.9]} 51...
Rc8 {[%clk 0:00:21.6]} 52. Ke1 {[%clk 0:00:13.5]} 52... Ke5 {[%clk 0:00:21.9]}
53. Ng6+ {[%clk 0:00:14]} 53... Kf6 {[%clk 0:00:23.1]} 54. Nf4 {[%clk
0:00:15.9]} 54... Rc6 {[%clk 0:00:16.4]} 55. Rc1 {[%clk 0:00:16.7]} 55... Ke5
{[%clk 0:00:14.9]} 56. c4 {[%clk 0:00:15.9]} 56... Nd4 {[%clk 0:00:12]} 57. Kd2
{[%clk 0:00:16.7]} 57... Nf5 {[%clk 0:00:13]} 58. cxb5 {[%clk 0:00:17.1]} 58...
Rd6+ {[%clk 0:00:14.4]} 59. Ke1 {[%clk 0:00:17.9]} 59... e3 {[%clk 0:00:15.5]}
60. fxe3 {[%clk 0:00:17.6]} 60... Ke4 {[%clk 0:00:15.2]} 61. bxa6 {[%clk
0:00:15.2]} 61... Nxe3 {[%clk 0:00:10]} 62. a7 {[%clk 0:00:14.9]} 62... Ng2+
{[%clk 0:00:11.3]} 63. Kf1 {[%clk 0:00:15.3]} 63... Ne3+ {[%clk 0:00:11.9]} 64.
Ke1 {[%clk 0:00:16.3]} 64... Ng2+ {[%clk 0:00:12.3]} 65. Nxg2 {[%clk 0:00:17]}
65... Ra6 {[%clk 0:00:10.9]} 66. Rc4+ {[%clk 0:00:15.8]} 66... Kd3 {[%clk
0:00:12.2]} 67. Nf4+ {[%clk 0:00:16.8]} 67... Ke3 {[%clk 0:00:13.7]} 68. Nd5+
{[%clk 0:00:18.2]} 68... Kd3 {[%clk 0:00:15.1]} 69. Ra4 {[%clk 0:00:17.2]} 1-0